[Event "Titled Tuesday Blitz August 22 Late 2023"]
[White "Wieczorek, Zbigniew"]
[Black "chessmateto"]
[WhiteFideId "1102001"]
[WhiteElo "2177"]
[BlackElo "2426"]
[Result "1/2-1/2"]
[Round "5"]
[TimeControl "180+1"]
[Date "2023.08.22"]
[WhiteClock "0:00:04"]
[BlackClock "0:00:09"]
[Board "144"]

1. g3 {[%clk 0:02:59]}  d5 {[%clk 0:02:59]} 2. Bg2 {[%clk 0:02:59]}  Nf6 {[%clk 0:03:00]} 3. c4 {[%clk 0:02:56]}  c6 {[%clk 0:02:59]} 4. cxd5 {[%clk 0:02:53]}  cxd5 {[%clk 0:02:59]} 5. Nf3 {[%clk 0:02:52]}  Nc6 {[%clk 0:02:59]} 6. d4 {[%clk 0:02:47]}  Bf5 {[%clk 0:02:54]} 7. a3 {[%clk 0:02:45]}  e6 {[%clk 0:02:54]} 8. O-O {[%clk 0:02:43]}  Bd6 {[%clk 0:02:54]} 9. Nc3 {[%clk 0:02:38]}  a6 {[%clk 0:02:54]} 10. b4 {[%clk 0:02:34]}  b5 {[%clk 0:02:50]} 11. Bf4 {[%clk 0:02:27]}  O-O {[%clk 0:02:42]} 12. Rc1 {[%clk 0:02:22]}  Rc8 {[%clk 0:02:41]} 13. Bxd6 {[%clk 0:02:04]}  Qxd6 {[%clk 0:02:40]} 14. e3 {[%clk 0:02:05]}  Nd7 {[%clk 0:02:39]} 15. Nh4 {[%clk 0:02:03]}  Bg6 {[%clk 0:02:35]} 16. Nxg6 {[%clk 0:02:02]}  hxg6 {[%clk 0:02:35]} 17. e4 {[%clk 0:01:53]}  dxe4 {[%clk 0:02:29]} 18. Nxe4 {[%clk 0:01:53]}  Qxd4 {[%clk 0:02:22]} 19. Qb3 {[%clk 0:01:52]}  Nde5 {[%clk 0:01:23]} 20. Rfd1 {[%clk 0:01:38]}  Qb6 {[%clk 0:01:16]} 21. Nd6 {[%clk 0:01:23]}  Rc7 {[%clk 0:01:02]} 22. Rc5 {[%clk 0:01:05]}  Na5 {[%clk 0:00:45]} 23. Qc3 {[%clk 0:00:57]}  Nac4 {[%clk 0:00:31]} 24. Rxe5 {[%clk 0:00:35]}  Nxd6 {[%clk 0:00:20]} 25. Rc5 {[%clk 0:00:32]}  Nc4 {[%clk 0:00:18]} 26. Rxc7 {[%clk 0:00:27]}  Qxc7 {[%clk 0:00:19]} 27. Rc1 {[%clk 0:00:13]}  Rd8 {[%clk 0:00:19]} 28. h3 {[%clk 0:00:13]}  Qd6 {[%clk 0:00:18]} 29. Bf1 {[%clk 0:00:12]}  Ne5 {[%clk 0:00:16]} 30. Re1 {[%clk 0:00:09]}  f6 {[%clk 0:00:14]} 31. Bg2 {[%clk 0:00:08]}  Nc4 {[%clk 0:00:11]} 32. a4 {[%clk 0:00:07]}  Qd2 {[%clk 0:00:10]} 33. Qxd2 {[%clk 0:00:07]}  Rxd2 {[%clk 0:00:10]} 34. axb5 {[%clk 0:00:08]}  axb5 {[%clk 0:00:11]} 35. Bc6 {[%clk 0:00:08]}  Nd6 {[%clk 0:00:07]} 36. Rxe6 {[%clk 0:00:07]}  Kf7 {[%clk 0:00:07]} 37. Re3 {[%clk 0:00:06]}  Rd4 {[%clk 0:00:07]} 38. Rb3 {[%clk 0:00:06]}  Ke6 {[%clk 0:00:07]} 39. Bf3 {[%clk 0:00:06]}  Ke5 {[%clk 0:00:07]} 40. Kg2 {[%clk 0:00:06]}  Nc4 {[%clk 0:00:07]} 41. Be2 {[%clk 0:00:05]}  Nd2 {[%clk 0:00:07]} 42. Rb2 {[%clk 0:00:05]}  Rd5 {[%clk 0:00:05]} 43. Bf3 {[%clk 0:00:04]}  Nxf3 {[%clk 0:00:05]} 44. Kxf3 {[%clk 0:00:04]}  Kd4 {[%clk 0:00:05]} 45. Kg4 {[%clk 0:00:02]}  Kc4 {[%clk 0:00:06]} 46. h4 {[%clk 0:00:01]}  Rd4+ {[%clk 0:00:06]} 47. Kf3 {[%clk 0:00:01]}  Kc3 {[%clk 0:00:07]} 48. Rb1 {[%clk 0:00:02]}  Rxb4 {[%clk 0:00:07]} 49. Rc1+ {[%clk 0:00:02]}  Kd2 {[%clk 0:00:08]} 50. Rc7 {[%clk 0:00:03]}  Rb3+ {[%clk 0:00:08]} 51. Kg4 {[%clk 0:00:03]}  Rb4+ {[%clk 0:00:09]} 52. Kh3 {[%clk 0:00:03]}  Rc4 {[%clk 0:00:10]} 53. Rxg7 {[%clk 0:00:04]}  b4 {[%clk 0:00:09]} 54. Rxg6 {[%clk 0:00:04]}  b3 {[%clk 0:00:10]} 55. Rxf6 {[%clk 0:00:05]}  Rb4 {[%clk 0:00:10]} 56. Rd6+ {[%clk 0:00:05]}  Ke2 {[%clk 0:00:11]} 57. Re6+ {[%clk 0:00:04]}  Kf1 {[%clk 0:00:10]} 58. Rd6 {[%clk 0:00:04]}  Ke2 {[%clk 0:00:08]} 59. Re6+ {[%clk 0:00:04]}  Kxf2 {[%clk 0:00:08]} 60. Rf6+ {[%clk 0:00:04]}  Kg1 {[%clk 0:00:09]} 61. Re6 {[%clk 0:00:04]}  b2 {[%clk 0:00:10]} 62. Re1+ {[%clk 0:00:04]}  Kf2 {[%clk 0:00:11]} 63. Rb1 {[%clk 0:00:04]}  Kf3 {[%clk 0:00:11]} 64. h5 {[%clk 0:00:05]}  Ke2 {[%clk 0:00:10]} 65. g4 {[%clk 0:00:04]}  Kd2 {[%clk 0:00:10]} 66. Kh4 {[%clk 0:00:04]}  Kc2 {[%clk 0:00:10]} 67. Rxb2+ {[%clk 0:00:04]}  Kxb2 {[%clk 0:00:11]} 68. h6 {[%clk 0:00:05]}  Kc3 {[%clk 0:00:11]} 69. Kh5 {[%clk 0:00:04]}  Kd4 {[%clk 0:00:09]} 70. h7 {[%clk 0:00:04]}  Rb1 {[%clk 0:00:07]} 71. Kg6 {[%clk 0:00:03]}  Rh1 {[%clk 0:00:08]} 72. g5 {[%clk 0:00:04]}  Ke5 {[%clk 0:00:09]} 73. Kg7 {[%clk 0:00:05]}  Kf5 {[%clk 0:00:09]} 74. g6 {[%clk 0:00:05]}  Kg5 {[%clk 0:00:09]} 75. h8=N {[%clk 0:00:04]}  Rxh8 {[%clk 0:00:09]} 76. Kxh8 {[%clk 0:00:04]}  Kxg6 {[%clk 0:00:09]} 1/2-1/2


[Site "https://www.chess.com"]

[Event "Titled Tuesday Blitz August 22 Late 2023"]
[White "Colpe, Malte"]
[Black "Powell, Paul"]
[WhiteFideId "24623075"]
[BlackFideId "2005840"]
[WhiteElo "2421"]
[BlackElo "2125"]
[Result "1-0"]
[Round "5"]
[TimeControl "180+1"]
[Date "2023.08.22"]
[WhiteClock "0:01:14"]
[BlackClock "0:00:00"]
[Board "145"]

1. e4 {[%clk 0:02:59]}  c5 {[%clk 0:02:59]} 2. Nc3 {[%clk 0:02:58]}  Nc6 {[%clk 0:02:56]} 3. Nf3 {[%clk 0:02:57]}  g6 {[%clk 0:02:52]} 4. Bb5 {[%clk 0:02:55]}  Nd4 {[%clk 0:02:44]} 5. Nxd4 {[%clk 0:02:45]}  cxd4 {[%clk 0:02:43]} 6. Ne2 {[%clk 0:02:45]}  Bg7 {[%clk 0:02:44]} 7. O-O {[%clk 0:02:45]}  a6 {[%clk 0:02:38]} 8. Ba4 {[%clk 0:02:44]}  e6 {[%clk 0:02:32]} 9. c3 {[%clk 0:02:42]}  dxc3 {[%clk 0:02:31]} 10. Nxc3 {[%clk 0:02:43]}  Ne7 {[%clk 0:02:28]} 11. d4 {[%clk 0:02:42]}  b5 {[%clk 0:02:12]} 12. Bb3 {[%clk 0:02:41]}  d6 {[%clk 0:02:12]} 13. Bg5 {[%clk 0:02:36]}  h6 {[%clk 0:02:01]} 14. Bh4 {[%clk 0:02:36]}  O-O {[%clk 0:02:01]} 15. a3 {[%clk 0:02:27]}  Bb7 {[%clk 0:01:50]} 16. f4 {[%clk 0:02:16]}  Qd7 {[%clk 0:01:32]} 17. Kh1 {[%clk 0:02:11]}  Nc6 {[%clk 0:01:20]} 18. d5 {[%clk 0:02:08]}  Na5 {[%clk 0:01:12]} 19. dxe6 {[%clk 0:02:02]}  fxe6 {[%clk 0:01:12]} 20. Ba2 {[%clk 0:02:02]}  Nc4 {[%clk 0:01:00]} 21. Qe2 {[%clk 0:01:58]}  Rac8 {[%clk 0:00:53]} 22. Rad1 {[%clk 0:01:55]}  Qc7 {[%clk 0:00:49]} 23. f5 {[%clk 0:01:47]}  exf5 {[%clk 0:00:30]} 24. exf5 {[%clk 0:01:48]}  Rce8 {[%clk 0:00:29]} 25. Qg4 {[%clk 0:01:46]}  g5 {[%clk 0:00:27]} 26. Bg3 {[%clk 0:01:38]}  Qc6 {[%clk 0:00:26]} 27. Nd5 {[%clk 0:01:36]}  Bf6 {[%clk 0:00:18]} 28. Qh5 {[%clk 0:01:28]}  Bg7 {[%clk 0:00:09]} 29. Qg6 {[%clk 0:01:19]}  Ne5 {[%clk 0:00:00]} 30. Nf6+ {[%clk 0:01:14]} 1-0


[Site "https://www.chess.com"]

[Event "Titled Tuesday Blitz August 22 Late 2023"]
[White "KorolDimitriy75"]
[Black "Jin, Ashton"]
[BlackFideId "30931908"]
[WhiteElo "2346"]
[BlackElo "2537"]
[Result "1-0"]
[Round "5"]
[TimeControl "180+1"]
[Date "2023.08.22"]
[WhiteClock "0:00:03"]
[BlackClock "0:00:28"]
[Board "149"]

1. d4 {[%clk 0:03:00]}  Nf6 {[%clk 0:02:58]} 2. c4 {[%clk 0:03:01]}  g6 {[%clk 0:02:58]} 3. Nc3 {[%clk 0:03:01]}  d5 {[%clk 0:02:59]} 4. cxd5 {[%clk 0:03:01]}  Nxd5 {[%clk 0:03:00]} 5. e4 {[%clk 0:03:01]}  Nxc3 {[%clk 0:03:00]} 6. bxc3 {[%clk 0:03:02]}  Bg7 {[%clk 0:03:01]} 7. Nf3 {[%clk 0:03:02]}  c5 {[%clk 0:03:01]} 8. Rb1 {[%clk 0:03:02]}  O-O {[%clk 0:02:55]} 9. Be2 {[%clk 0:03:02]}  cxd4 {[%clk 0:02:53]} 10. cxd4 {[%clk 0:03:03]}  Qa5+ {[%clk 0:02:53]} 11. Qd2 {[%clk 0:03:03]}  Qxd2+ {[%clk 0:02:50]} 12. Bxd2 {[%clk 0:03:04]}  Nc6 {[%clk 0:02:31]} 13. d5 {[%clk 0:03:03]}  Nd4 {[%clk 0:02:27]} 14. Nxd4 {[%clk 0:03:03]}  Bxd4 {[%clk 0:02:28]} 15. Bb4 {[%clk 0:03:02]}  Re8 {[%clk 0:02:25]} 16. Bb5 {[%clk 0:03:01]}  a5 {[%clk 0:02:17]} 17. Ba3 {[%clk 0:02:41]}  Bc3+ {[%clk 0:02:15]} 18. Ke2 {[%clk 0:02:40]}  Kf8 {[%clk 0:01:58]} 19. Rhc1 {[%clk 0:02:10]}  Bd4 {[%clk 0:01:52]} 20. Bxe8 {[%clk 0:02:05]}  Kxe8 {[%clk 0:01:53]} 21. Rc7 {[%clk 0:01:59]}  Bd7 {[%clk 0:01:22]} 22. Rcxb7 {[%clk 0:00:52]}  Rc8 {[%clk 0:01:18]} 23. Rb8 {[%clk 0:00:51]}  Be5 {[%clk 0:01:13]} 24. Rxc8+ {[%clk 0:00:49]}  Bxc8 {[%clk 0:01:14]} 25. g3 {[%clk 0:00:44]}  g5 {[%clk 0:01:12]} 26. f3 {[%clk 0:00:40]}  f5 {[%clk 0:01:07]} 27. exf5 {[%clk 0:00:25]}  Bxf5 {[%clk 0:01:08]} 28. Rb5 {[%clk 0:00:24]}  Bc3 {[%clk 0:01:06]} 29. d6 {[%clk 0:00:22]}  e6 {[%clk 0:00:58]} 30. Rb8+ {[%clk 0:00:19]}  Kd7 {[%clk 0:00:58]} 31. Rb7+ {[%clk 0:00:19]}  Kd8 {[%clk 0:00:57]} 32. Bc5 {[%clk 0:00:16]}  e5 {[%clk 0:00:53]} 33. Bb6+ {[%clk 0:00:13]}  Ke8 {[%clk 0:00:53]} 34. Re7+ {[%clk 0:00:11]}  Kf8 {[%clk 0:00:53]} 35. Bc5 {[%clk 0:00:10]}  Bb4 {[%clk 0:00:49]} 36. Bxb4 {[%clk 0:00:09]}  axb4 {[%clk 0:00:50]} 37. Rb7 {[%clk 0:00:08]}  Ke8 {[%clk 0:00:47]} 38. Ke3 {[%clk 0:00:07]}  Bb1 {[%clk 0:00:43]} 39. Rxb4 {[%clk 0:00:05]}  Bxa2 {[%clk 0:00:44]} 40. Rb5 {[%clk 0:00:05]}  Kd7 {[%clk 0:00:42]} 41. Rxe5 {[%clk 0:00:05]}  h6 {[%clk 0:00:42]} 42. Re7+ {[%clk 0:00:05]}  Kxd6 {[%clk 0:00:43]} 43. Rh7 {[%clk 0:00:05]}  Ke5 {[%clk 0:00:41]} 44. Rxh6 {[%clk 0:00:06]}  Bd5 {[%clk 0:00:41]} 45. Rb6 {[%clk 0:00:05]}  Bc4 {[%clk 0:00:40]} 46. Rc6 {[%clk 0:00:05]}  Bf1 {[%clk 0:00:39]} 47. Rc5+ {[%clk 0:00:05]}  Kf6 {[%clk 0:00:39]} 48. f4 {[%clk 0:00:05]}  g4 {[%clk 0:00:40]} 49. Re5 {[%clk 0:00:04]}  Bg2 {[%clk 0:00:40]} 50. Rg5 {[%clk 0:00:04]}  Bf3 {[%clk 0:00:40]} 51. Kd4 {[%clk 0:00:04]}  Be2 {[%clk 0:00:41]} 52. Rh5 {[%clk 0:00:04]}  Bf3 {[%clk 0:00:41]} 53. h4 {[%clk 0:00:04]}  gxh3 {[%clk 0:00:39]} 54. Rxh3 {[%clk 0:00:04]}  Kf5 {[%clk 0:00:39]} 55. Rh4 {[%clk 0:00:05]}  Bg2 {[%clk 0:00:39]} 56. Ke3 {[%clk 0:00:04]}  Bd5 {[%clk 0:00:39]} 57. g4+ {[%clk 0:00:04]}  Kf6 {[%clk 0:00:39]} 58. Rh5 {[%clk 0:00:04]}  Bb7 {[%clk 0:00:39]} 59. Re5 {[%clk 0:00:03]}  Ba8 {[%clk 0:00:38]} 60. Kf2 {[%clk 0:00:03]}  Bc6 {[%clk 0:00:39]} 61. Kg3 {[%clk 0:00:04]}  Bb7 {[%clk 0:00:39]} 62. Kh4 {[%clk 0:00:04]}  Bc6 {[%clk 0:00:39]} 63. g5+ {[%clk 0:00:04]}  Kf7 {[%clk 0:00:39]} 64. f5 {[%clk 0:00:04]}  Ba4 {[%clk 0:00:39]} 65. Kg4 {[%clk 0:00:04]}  Kg7 {[%clk 0:00:38]} 66. Kf4 {[%clk 0:00:04]}  Bc2 {[%clk 0:00:36]} 67. Re7+ {[%clk 0:00:04]}  Kf8 {[%clk 0:00:36]} 68. f6 {[%clk 0:00:04]}  Bg6 {[%clk 0:00:36]} 69. Ke5 {[%clk 0:00:04]}  Bh5 {[%clk 0:00:37]} 70. Rg7 {[%clk 0:00:03]}  Ke8 {[%clk 0:00:36]} 71. Kf5 {[%clk 0:00:03]}  Kf8 {[%clk 0:00:36]} 72. g6 {[%clk 0:00:03]}  Bd1 {[%clk 0:00:28]} 73. Rc7 {[%clk 0:00:03]} 1-0


[Site "https://www.chess.com"]

[Event "Titled Tuesday Blitz August 22 Late 2023"]
[White "rionelG"]
[Black "Ansh M Shah"]
[BlackFideId "25033379"]
[WhiteElo "2337"]
[BlackElo "2505"]
[Result "1-0"]
[Round "5"]
[TimeControl "180+1"]
[Date "2023.08.22"]
[WhiteClock "0:01:17"]
[BlackClock "0:01:00"]
[Board "153"]

1. e4 {[%clk 0:02:45]}  c5 {[%clk 0:02:54]} 2. g3 {[%clk 0:02:44]}  g6 {[%clk 0:02:51]} 3. Bg2 {[%clk 0:02:44]}  Bg7 {[%clk 0:02:52]} 4. Ne2 {[%clk 0:02:44]}  Nc6 {[%clk 0:02:52]} 5. c3 {[%clk 0:02:44]}  d6 {[%clk 0:02:53]} 6. d4 {[%clk 0:02:44]}  cxd4 {[%clk 0:02:54]} 7. cxd4 {[%clk 0:02:44]}  Nf6 {[%clk 0:02:53]} 8. Nbc3 {[%clk 0:02:45]}  O-O {[%clk 0:02:52]} 9. h3 {[%clk 0:02:45]}  a6 {[%clk 0:02:52]} 10. O-O {[%clk 0:02:46]}  Bd7 {[%clk 0:02:49]} 11. Be3 {[%clk 0:02:44]}  Rc8 {[%clk 0:02:48]} 12. f4 {[%clk 0:02:43]}  b5 {[%clk 0:02:48]} 13. e5 {[%clk 0:02:43]}  Ne8 {[%clk 0:02:48]} 14. Qd2 {[%clk 0:02:42]}  Na5 {[%clk 0:02:17]} 15. b3 {[%clk 0:02:41]}  Bc6 {[%clk 0:02:09]} 16. Ne4 {[%clk 0:02:35]}  Nc7 {[%clk 0:02:00]} 17. Qxa5 {[%clk 0:02:33]}  Nd5 {[%clk 0:01:59]} 18. Qxd8 {[%clk 0:02:23]}  Rfxd8 {[%clk 0:02:00]} 19. Bf2 {[%clk 0:02:23]}  Nb4 {[%clk 0:01:57]} 20. a3 {[%clk 0:02:05]}  Nd3 {[%clk 0:01:44]} 21. Rfd1 {[%clk 0:02:03]}  Nxf2 {[%clk 0:01:44]} 22. Kxf2 {[%clk 0:01:54]}  b4 {[%clk 0:01:41]} 23. a4 {[%clk 0:01:53]}  a5 {[%clk 0:01:40]} 24. Rac1 {[%clk 0:01:52]}  Bd5 {[%clk 0:01:41]} 25. Rxc8 {[%clk 0:01:42]}  Rxc8 {[%clk 0:01:42]} 26. Nxd6 {[%clk 0:01:42]}  Bxb3 {[%clk 0:01:34]} 27. Nxc8 {[%clk 0:01:42]}  Bxd1 {[%clk 0:01:34]} 28. Nxe7+ {[%clk 0:01:38]}  Kf8 {[%clk 0:01:30]} 29. Nc6 {[%clk 0:01:38]}  b3 {[%clk 0:01:30]} 30. Be4 {[%clk 0:01:33]}  f5 {[%clk 0:01:28]} 31. Bd3 {[%clk 0:01:30]}  b2 {[%clk 0:01:24]} 32. Nxa5 {[%clk 0:01:25]}  Bxa4 {[%clk 0:01:10]} 33. Nc4 {[%clk 0:01:21]}  g5 {[%clk 0:01:06]} 34. Nxb2 {[%clk 0:01:20]}  gxf4 {[%clk 0:01:03]} 35. gxf4 {[%clk 0:01:17]}  Bd7 {[%clk 0:01:00]} 36. d5 {[%clk 0:01:17]} 1-0


[Site "https://www.chess.com"]

[Event "Titled Tuesday Blitz August 22 Late 2023"]
[White "Harish, Neeraj"]
[Black "Jaskolka, Tomasz"]
[WhiteFideId "30958130"]
[BlackFideId "1170791"]
[WhiteElo "2333"]
[BlackElo "2503"]
[Result "1-0"]
[Round "5"]
[TimeControl "180+1"]
[Date "2023.08.22"]
[WhiteClock "0:00:25"]
[BlackClock "0:00:01"]
[Board "154"]

1. e4 {[%clk 0:03:00]}  c5 {[%clk 0:02:59]} 2. Nf3 {[%clk 0:03:01]}  e6 {[%clk 0:02:59]} 3. d4 {[%clk 0:03:00]}  cxd4 {[%clk 0:03:00]} 4. Nxd4 {[%clk 0:03:01]}  Nc6 {[%clk 0:03:01]} 5. Nc3 {[%clk 0:03:01]}  Qc7 {[%clk 0:03:02]} 6. Be3 {[%clk 0:03:00]}  a6 {[%clk 0:03:00]} 7. g4 {[%clk 0:03:00]}  Nge7 {[%clk 0:02:57]} 8. Qd2 {[%clk 0:02:52]}  Nxd4 {[%clk 0:02:56]} 9. Bxd4 {[%clk 0:02:52]}  Nc6 {[%clk 0:02:57]} 10. Be3 {[%clk 0:02:52]}  b5 {[%clk 0:02:57]} 11. O-O-O {[%clk 0:02:51]}  Bb7 {[%clk 0:02:35]} 12. Kb1 {[%clk 0:02:40]}  Be7 {[%clk 0:02:34]} 13. h4 {[%clk 0:02:40]}  Rd8 {[%clk 0:02:30]} 14. f4 {[%clk 0:02:34]}  O-O {[%clk 0:02:29]} 15. h5 {[%clk 0:02:33]}  d5 {[%clk 0:02:22]} 16. exd5 {[%clk 0:02:32]}  Nb4 {[%clk 0:02:23]} 17. Bg2 {[%clk 0:02:24]}  Nxd5 {[%clk 0:02:22]} 18. Nxd5 {[%clk 0:02:23]}  Bxd5 {[%clk 0:02:22]} 19. Bxd5 {[%clk 0:02:23]}  Rxd5 {[%clk 0:02:21]} 20. Qe2 {[%clk 0:02:21]}  Rfd8 {[%clk 0:02:18]} 21. h6 {[%clk 0:02:20]}  g6 {[%clk 0:02:16]} 22. Rxd5 {[%clk 0:02:10]}  Rxd5 {[%clk 0:02:15]} 23. Rd1 {[%clk 0:02:11]}  Qd6 {[%clk 0:02:11]} 24. Rd3 {[%clk 0:02:06]}  Rxd3 {[%clk 0:02:06]} 25. cxd3 {[%clk 0:02:03]}  Qd5 {[%clk 0:01:52]} 26. Qc2 {[%clk 0:01:54]}  Qh1+ {[%clk 0:01:37]} 27. Bc1 {[%clk 0:01:53]}  Qb7 {[%clk 0:01:37]} 28. a3 {[%clk 0:01:45]}  f6 {[%clk 0:01:23]} 29. Qc3 {[%clk 0:01:42]}  Kf7 {[%clk 0:01:21]} 30. g5 {[%clk 0:01:37]}  Qd7 {[%clk 0:01:21]} 31. b4 {[%clk 0:01:30]}  fxg5 {[%clk 0:00:57]} 32. fxg5 {[%clk 0:01:28]}  Qd5 {[%clk 0:00:46]} 33. Kc2 {[%clk 0:01:07]}  e5 {[%clk 0:00:32]} 34. Bb2 {[%clk 0:01:01]}  Bxg5 {[%clk 0:00:27]} 35. Qc7+ {[%clk 0:00:57]}  Be7 {[%clk 0:00:27]} 36. Qc8 {[%clk 0:00:57]}  Qg2+ {[%clk 0:00:20]} 37. Kb3 {[%clk 0:00:54]}  Qd5+ {[%clk 0:00:20]} 38. Kc2 {[%clk 0:00:54]}  Qg2+ {[%clk 0:00:20]} 39. Kb3 {[%clk 0:00:54]}  Qd2 {[%clk 0:00:16]} 40. Qd7 {[%clk 0:00:49]}  Kf6 {[%clk 0:00:15]} 41. Qd5 {[%clk 0:00:47]}  Qe3 {[%clk 0:00:13]} 42. Qc6+ {[%clk 0:00:46]}  Kf5 {[%clk 0:00:13]} 43. Qd7+ {[%clk 0:00:46]}  Kf6 {[%clk 0:00:13]} 44. Qc6+ {[%clk 0:00:44]}  Kg5 {[%clk 0:00:14]} 45. Qd5 {[%clk 0:00:41]}  Bf6 {[%clk 0:00:14]} 46. Kc2 {[%clk 0:00:33]}  Kxh6 {[%clk 0:00:13]} 47. Bc1 {[%clk 0:00:33]}  Qxc1+ {[%clk 0:00:05]} 48. Kxc1 {[%clk 0:00:33]}  Kg5 {[%clk 0:00:05]} 49. Qb7 {[%clk 0:00:33]}  h5 {[%clk 0:00:06]} 50. Qxa6 {[%clk 0:00:33]}  h4 {[%clk 0:00:06]} 51. Qxb5 {[%clk 0:00:34]}  h3 {[%clk 0:00:06]} 52. Qd5 {[%clk 0:00:34]}  Kh4 {[%clk 0:00:04]} 53. b5 {[%clk 0:00:34]}  Bg5+ {[%clk 0:00:02]} 54. Kd1 {[%clk 0:00:33]}  Be3 {[%clk 0:00:02]} 55. Qe4+ {[%clk 0:00:32]}  Bf4 {[%clk 0:00:03]} 56. b6 {[%clk 0:00:32]}  g5 {[%clk 0:00:03]} 57. b7 {[%clk 0:00:32]}  g4 {[%clk 0:00:03]} 58. b8=Q {[%clk 0:00:32]}  Kg3 {[%clk 0:00:04]} 59. Qe1+ {[%clk 0:00:26]}  Kf3 {[%clk 0:00:02]} 60. Qb7+ {[%clk 0:00:25]}  e4 {[%clk 0:00:01]} 61. Qbxe4# {[%clk 0:00:25]} 1-0


[Site "https://www.chess.com"]

[Event "Titled Tuesday Blitz August 22 Late 2023"]
[White "KrokerGuy"]
[Black "Mikhaylova, Irina"]
[BlackFideId "4109040"]
[WhiteElo "2454"]
[BlackElo "2286"]
[Result "1-0"]
[Round "5"]
[TimeControl "180+1"]
[Date "2023.08.22"]
[WhiteClock "0:00:12"]
[BlackClock "0:00:16"]
[Board "160"]

1. e4 {[%clk 0:03:00]}  c5 {[%clk 0:03:00]} 2. Nf3 {[%clk 0:03:01]}  Nc6 {[%clk 0:03:00]} 3. d4 {[%clk 0:03:02]}  cxd4 {[%clk 0:03:00]} 4. Nxd4 {[%clk 0:03:02]}  e5 {[%clk 0:03:01]} 5. Nb5 {[%clk 0:03:02]}  d6 {[%clk 0:03:01]} 6. N1c3 {[%clk 0:03:03]}  a6 {[%clk 0:03:02]} 7. Na3 {[%clk 0:03:03]}  b5 {[%clk 0:03:02]} 8. Nd5 {[%clk 0:03:03]}  Nge7 {[%clk 0:03:03]} 9. c4 {[%clk 0:03:02]}  Nd4 {[%clk 0:03:03]} 10. cxb5 {[%clk 0:03:00]}  Nxd5 {[%clk 0:03:03]} 11. exd5 {[%clk 0:03:00]}  Qh4 {[%clk 0:03:04]} 12. Be3 {[%clk 0:02:38]}  Nf5 {[%clk 0:03:03]} 13. Nc2 {[%clk 0:02:36]}  Be7 {[%clk 0:02:50]} 14. bxa6 {[%clk 0:02:18]}  O-O {[%clk 0:02:46]} 15. Bd3 {[%clk 0:02:14]}  Nxe3 {[%clk 0:01:57]} 16. Nxe3 {[%clk 0:02:09]}  f5 {[%clk 0:01:58]} 17. Qc2 {[%clk 0:01:36]}  e4 {[%clk 0:01:31]} 18. Bb5 {[%clk 0:01:30]}  f4 {[%clk 0:01:21]} 19. Nc4 {[%clk 0:01:22]}  Bf5 {[%clk 0:00:38]} 20. Qd2 {[%clk 0:01:05]}  Bg5 {[%clk 0:00:35]} 21. Qe2 {[%clk 0:00:36]}  f3 {[%clk 0:00:32]} 22. g3 {[%clk 0:00:31]}  Qh6 {[%clk 0:00:22]} 23. Qd1 {[%clk 0:00:26]}  Qh3 {[%clk 0:00:20]} 24. Qb3 {[%clk 0:00:06]}  Qg2 {[%clk 0:00:17]} 25. Rf1 {[%clk 0:00:06]}  e3 {[%clk 0:00:16]} 26. Nxe3 {[%clk 0:00:02]}  Rae8 {[%clk 0:00:14]} 27. O-O-O {[%clk 0:00:02]}  Bxe3+ {[%clk 0:00:13]} 28. fxe3 {[%clk 0:00:02]}  f2 {[%clk 0:00:13]} 29. a7 {[%clk 0:00:02]}  Qe4 {[%clk 0:00:13]} 30. Bd3 {[%clk 0:00:01]}  Qe5 {[%clk 0:00:11]} 31. Bxf5 {[%clk 0:00:01]}  Qxf5 {[%clk 0:00:12]} 32. Qd3 {[%clk 0:00:01]}  Qe5 {[%clk 0:00:11]} 33. Kb1 {[%clk 0:00:02]}  Ra8 {[%clk 0:00:11]} 34. Rd2 {[%clk 0:00:02]}  Qe7 {[%clk 0:00:11]} 35. Rdxf2 {[%clk 0:00:03]}  Rxf2 {[%clk 0:00:11]} 36. Rxf2 {[%clk 0:00:04]}  Qxa7 {[%clk 0:00:12]} 37. Qd4 {[%clk 0:00:04]}  h6 {[%clk 0:00:12]} 38. Qxa7 {[%clk 0:00:04]}  Rxa7 {[%clk 0:00:13]} 39. a3 {[%clk 0:00:05]}  Re7 {[%clk 0:00:13]} 40. Re2 {[%clk 0:00:06]}  Re5 {[%clk 0:00:14]} 41. e4 {[%clk 0:00:07]}  g5 {[%clk 0:00:14]} 42. a4 {[%clk 0:00:07]}  Re7 {[%clk 0:00:15]} 43. b4 {[%clk 0:00:07]}  Ra7 {[%clk 0:00:16]} 44. a5 {[%clk 0:00:08]}  Kf7 {[%clk 0:00:15]} 45. Kc2 {[%clk 0:00:08]}  Kf6 {[%clk 0:00:16]} 46. Kd3 {[%clk 0:00:08]}  Ke5 {[%clk 0:00:17]} 47. Ra2 {[%clk 0:00:08]}  Rf7 {[%clk 0:00:17]} 48. Ke3 {[%clk 0:00:07]}  g4 {[%clk 0:00:16]} 49. a6 {[%clk 0:00:07]}  Rf3+ {[%clk 0:00:17]} 50. Ke2 {[%clk 0:00:08]}  Kxe4 {[%clk 0:00:17]} 51. a7 {[%clk 0:00:08]}  Re3+ {[%clk 0:00:16]} 52. Kd2 {[%clk 0:00:08]}  Rd3+ {[%clk 0:00:17]} 53. Kc2 {[%clk 0:00:09]}  Rxd5 {[%clk 0:00:16]} 54. a8=Q {[%clk 0:00:09]}  Kd4 {[%clk 0:00:17]} 55. Ra5 {[%clk 0:00:09]}  Re5 {[%clk 0:00:15]} 56. Rxe5 {[%clk 0:00:09]}  Kxe5 {[%clk 0:00:16]} 57. b5 {[%clk 0:00:10]}  Kd4 {[%clk 0:00:16]} 58. b6 {[%clk 0:00:10]}  Ke3 {[%clk 0:00:17]} 59. b7 {[%clk 0:00:11]}  Kf2 {[%clk 0:00:18]} 60. b8=Q {[%clk 0:00:12]}  Kg1 {[%clk 0:00:18]} 61. Qxd6 {[%clk 0:00:13]}  Kxh2 {[%clk 0:00:16]} 62. Qxh6+ {[%clk 0:00:12]} 1-0


[Site "https://www.chess.com"]